[Event "45th FIDE Olympiad 2024"]
[Site "Budapest"]
[Date "2024.09.19"]
[Round "8.41"]
[White "Ebosse, Kingue Victor Patric"]
[Black "Sihlongonyane, Sikhanyiso"]
[Result "1/2-1/2"]
[WhiteElo "2014"]
[BlackElo "1813"]
[PlyCount "82"]
[EventDate "2024.09.05"]
[EventType "team-tourn"]
[EventCountry "HUN"]
[WhiteTeam "Cameroon"]
[BlackTeam "Eswatini"]
[WhiteTeamCountry "CAM"]
[TimeControl "40/5400+30:1800+30"]

1. e4 c5 2. Nf3 Nc6 3. Bc4 e6 4. d4 cxd4 5. Nxd4 a6 6. Nc3 Qc7 7. Nxc6 Qxc6 8. Qe2 Nf6 9. Bd2 Be7 10. e5 Ng8 11. O-O-O d6 12. f4 d5 13. Bd3 Bd7 14. Rhf1 O-O-O 15. g4 Bc5 16. f5 Ne7 17. f6 gxf6 18. Rxf6 Be8 19. h4 Ng6 20. h5 Nf8 21. Rf4 Nd7 22. b4 Be7 23. b5 Ba3+ 24. Kb1 Qc7 25. Ra4 Be7 26. bxa6 Nb6 27. axb7+ Kxb7 28. Rf4 Bg5 29. Rf3 Bxd2 30. Rxd2 Qc5 31. Bb5 Bxb5 32. Qxb5 Qxb5+ 33. Nxb5 Nc4 34. Re2 Kb6 35. Nd4 Rd7 36. Rb3+ Kc7 37. a4 Ra8 38. Nb5+ Kc6 39. Nd4+ Kc7 40. Nb5+ Kc6 41. Nd4+ Kc7 1/2-1/2

[Event "45th FIDE Olympiad 2024"]
[Site "Budapest"]
[Date "2024.09.19"]
[Round "8.42"]
[White "Andersen, Mads"]
[Black "Vallejo Pons, Francisco"]
[Result "1/2-1/2"]
[ECO "B15"]
[WhiteElo "2598"]
[BlackElo "2657"]
[Annotator "TA"]
[PlyCount "60"]
[EventDate "2024.09.05"]
[EventType "team-tourn"]
[EventCountry "HUN"]
[SourceTitle "playchess.com"]
[Source "ChessBase"]
[SourceQuality "1"]
[WhiteTeam "Denmark"]
[BlackTeam "Spain"]
[WhiteTeamCountry "DEN"]
[BlackTeamCountry "ESP"]
[TimeControl "40/5400+30:1800+30"]

{[%evp 11,60,27,25,0,41,35,30,41,50,45,39,32,45,35,41,0,0,0,12,0,0,0,0,0,0,0,2,0,43,36,31,0,13,0,0,0,0,0,0,0,0,0,0,0,23,0,0,0,0,0,0]} 1. e4 {[%emt 0:00:06]} c6 {[%emt 0:00:10]} 2. Nf3 {[%emt 0:00:33]} d5 {[%emt 0:00:09]} 3. Nc3 {[%emt 0:00:10]} g6 {[%emt 0:01:02]} 4. d4 {[%emt 0:01:44]} Bg7 {[%emt 0:00:28]} 5. h3 {[%emt 0:01:44]} Nf6 {[%emt 0:00:12]} 6. e5 {[%emt 0:03:35]} Ne4 {[%emt 0:00:20]} 7. a4 {[%emt 0:00:16]} c5 {[%emt 0:06:11]} 8. Bb5+ {[%emt 0:06:46]} Nc6 {[%emt 0:14:06]} 9. dxc5 {[%emt 0:12:09] White has an edge.} Nxc3 {[%emt 0:02:37]} 10. bxc3 {[%emt 0:00:11]} O-O {[%emt 0:00:10]} 11. Bf4 {[%emt 0:05:32]} Qc7 {[%emt 0:09:22][%cal Rc6e5]} 12. Qxd5 {[%emt 0:08:54]} Bf5 {[%emt 0:01:23]} 13. O-O {[%emt 0:04:24]} (13. Bxc6 $5 Rad8 14. Qc4 Qxc6 15. O-O $11) 13... Rad8 {[%emt 0:08:22]} 14. Qb3 {[%emt 0:00:41]} Be4 {[%emt 0:13:13]} 15. Be2 {[%emt 0:09:53]} Nxe5 {[%emt 0:03:57]} 16. Nxe5 {[%emt 0:03:27]} Bxe5 {[%emt 0:00:15]} 17. Bh6 {[%emt 0:00:47]} Bg7 {[%emt 0:05:13]} 18. Be3 {[%emt 0:02:31]} (18. Bxg7 {simplifies} Kxg7 19. Qb4 Bxc2 20. a5) 18... Qe5 {[%emt 0:02:16]} 19. Rab1 {[%emt 0:06:24]} Rd7 {[%emt 0:05:57][%cal Bd8d7,Bd7c7,Bc7c5][%mdl 32]} 20. Bb5 {[%emt 0:03:30]} Rc7 {[%emt 0:02:04]} 21. Rfe1 {[%emt 0:04:33][%cal Bf1e1,Be1e7,Be7a7][%mdl 32]} Qf5 {[%emt 0:02:32] [#]} 22. Bd3 {[%emt 0:03:32]} Bxd3 {[%emt 0:05:12]} 23. cxd3 {[%emt 0:00:11]} Qxd3 {[%emt 0:00:15]} 24. Bf4 {[%emt 0:05:27]} Rxc5 {[%emt 0:00:55]} 25. Rxe7 {[%emt 0:00:25]} b6 {[%emt 0:01:39]} 26. Rxa7 {[%emt 0:02:45]} Rxc3 {[%emt 0:02:08]} 27. Qb5 {[%emt 0:02:25]} (27. Qxb6 $2 {perishes.} Bd4 28. Rd7 Bxb6 $19 (28... Bxf2+ $2 29. Qxf2 Qxb1+ 30. Kh2 $19)) 27... Bd4 {[%emt 0:01:36][%cal Od4f2]} 28. Qxd3 {[%emt 0:07:19]} Rxd3 {[%emt 0:00:03] The position is equal.} 29. Be3 {[%emt 0:00:59]} Bxe3 {[%emt 0:02:08]} 30. fxe3 {[%emt 0:00:02]} Rxe3 {[%emt 0:01:42] Weighted Error Value: White=0.08 (flawless) /Black=0.08 (flawless) .  Inaccurate:     	White=2     	Black=2      OK:         	White=6     	Black=5      Best:        	White=2     	Black=4} 1/2-1/2

[Event "45th FIDE Olympiad 2024"]
[Site "Budapest"]
[Date "2024.09.19"]
[Round "8.42"]
[White "Dlamini, Simphiwe"]
[Black "Zebaze, Dongmo Loic Dylane"]
[Result "0-1"]
[WhiteElo "1747"]
[BlackElo "1914"]
[PlyCount "106"]
[EventDate "2024.09.05"]
[EventType "team-tourn"]
[EventCountry "HUN"]
[WhiteTeam "Eswatini"]
[BlackTeam "Cameroon"]
[BlackTeamCountry "CAM"]
[TimeControl "40/5400+30:1800+30"]

1. e4 e6 2. d3 d5 3. Nd2 Nf6 4. e5 Nfd7 5. f4 c5 6. Be2 Nc6 7. Ngf3 Be7 8. Nf1 b6 9. Ng3 g6 10. c4 dxc4 11. dxc4 Bb7 12. Be3 Qc7 13. Qc2 Rd8 14. Rd1 O-O 15. O-O f6 16. Nh4 Kg7 17. f5 fxe5 18. fxg6 Bxh4 19. Nh5+ Kg8 20. gxh7+ Kh8 21. Bh6 Nf6 22. Bg7+ Qxg7 23. Nxg7 Kxg7 24. Rxd8 Rxd8 25. Qc3 Nd4 26. Bd1 Nxh7 27. Qh3 Bg5 28. Qg4 Kh8 29. Rf7 Rg8 30. Rxb7 Be3+ 31. Kh1 Rxg4 32. Bxg4 Nf6 33. Bf3 e4 34. Bd1 Bc1 35. Rf7 Ng8 36. b3 e3 37. Rf1 Bd2 38. g3 Bc3 39. Kg2 Kg7 40. Rf4 Nf6 41. Kf1 e5 42. Rh4 Nf5 43. Rh3 Ne4 44. Bc2 Nd4 45. Bd3 Nf2 46. Rh7+ Kg8 47. Bg6 e2+ 48. Kxf2 e1=Q+ 49. Kg2 Qe2+ 50. Kh3 Qf1+ 51. Kg4 Qf3+ 52. Kh3 Ne6 53. Rxa7 Nf4+ {0-} 0-1

[Event "45th FIDE Olympiad 2024"]
[Site "Budapest"]
[Date "2024.09.19"]
[Round "8.43"]
[White "Pichot, Alan"]
[Black "Thybo, Jesper Sondergaard"]
[Result "1-0"]
[ECO "C54"]
[WhiteElo "2628"]
[BlackElo "2555"]
[Annotator "TA"]
[PlyCount "95"]
[EventDate "2024.09.05"]
[EventType "team-tourn"]
[EventCountry "HUN"]
[SourceTitle "playchess.com"]
[Source "ChessBase"]
[SourceQuality "1"]
[WhiteTeam "Spain"]
[BlackTeam "Denmark"]
[WhiteTeamCountry "ESP"]
[BlackTeamCountry "DEN"]
[TimeControl "40/5400+30:1800+30"]

{[%evp 19,95,-8,0,11,20,20,24,-4,10,-9,-6,0,-1,-30,43,52,54,55,35,55,95,101,78,56,56,58,80,74,78,47,106,8,0,0,0,0,118,60,56,11,20,17,24,33,25,15,47,58,32,9,80,29,131,145,133,104,252,234,274,232,205,181,255,251,292,270,312,308,323,319,472,456,691,689,720,715,803,781]} 1. e4 {[%emt 0:00:12]} e5 {[%emt 0:00:07]} 2. Nf3 {[%emt 0:00:11]} Nc6 {[%emt 0:00:05]} 3. Bc4 {[%emt 0:00:18]} Bc5 {[%emt 0:00:12]} 4. c3 {[%emt 0:00:22]} Nf6 {[%emt 0:00:12]} 5. d3 {[%emt 0:00:20]} d6 {[%emt 0:00:21]} 6. b4 {[%emt 0:00:39]} Bb6 {[%emt 0:00:17]} 7. a4 {[%emt 0:00:20]} a5 {[%emt 0:00:58]} 8. b5 {[%emt 0:00:15]} Ne7 {[%emt 0:00:14]} 9. Nbd2 {[%emt 0:02:53]} O-O {[%emt 0:03:14]} 10. O-O {[%emt 0:00:23]} Ng6 {[%emt 0:03:43]} 11. d4 {[%emt 0:03:26]} h6 {[%emt 0:14:36]} 12. Re1 {[%emt 0:04:53]} Re8 {[%emt 0:02:44]} 13. Bb2 {[%emt 0:34:32] White has an edge.} c6 {[%emt 0:20:03]} 14. h3 {[%emt 0:17:52]} exd4 {[%emt 0:12:13]} 15. cxd4 {[%emt 0:01:01]} d5 {[%emt 0:00:09]} 16. e5 {[%emt 0:02:00]} (16. exd5 {simplifies} cxd5 17. Rxe8+ Nxe8 18. Bf1) 16... Nd7 {[%emt 0:27:34]} (16... dxc4 $11 17. exf6 cxb5 18. axb5 Be6 (18... gxf6 19. d5 $14)) 17. Bd3 $14 {[%emt 0:04:47]} Nf4 {[%emt 0:00:30]} 18. Bf1 {[%emt 0:00:36]} c5 {[%emt 0:00:50]} 19. Rc1 {[%emt 0:10:48]} c4 {[%emt 0:04:19]} 20. g3 {[%emt 0:01:58]} Ng6 {[%emt 0:01:02]} 21. Nb1 {[%emt 0:00:27] White is more active.} Ndf8 {[%emt 0:01:08]} 22. Nc3 {[%emt 0:00:27]} Bf5 {[%emt 0:00:29]} 23. Ba3 {[%emt 0:00:54] Repels Re7} Qd7 {[%emt 0:01:02]} 24. Kh2 {[%emt 0:00:52]} Bd8 {[%emt 0:00:28]} (24... Rad8 $14) 25. Bxf8 {[%emt 0:03:53]} (25. Bd6 $16 Be6 26. Bg2) 25... Rxf8 $11 {[%emt 0:00:55]} 26. Bg2 {[%emt 0:00:14]} Be7 {[%emt 0:01:12]} 27. Nd2 {[%emt 0:01:12]} Ba3 {[%emt 0:01:00] [#]} (27... Be6 $11) 28. Nxd5 {[%emt 0:02:10]} ({Better is} 28. Ra1 $1 $16 {[%cal Ra1a3]} Bb2 29. Nxd5) 28... Bxc1 $14 {[%emt 0:00:06]} 29. Qxc1 {[%emt 0:00:05]} (29. Nxc4 $5 Bg5 30. Ncb6 $11) 29... Be6 {[%emt 0:03:08]} 30. Nb6 {[%emt 0:02:10] A dynamic duo of knights.} (30. Qxc4 $2 Rac8 (30... Rad8 31. Nb6 $17) 31. Nb6 Qd8 $19) 30... Qxd4 {[%emt 0:00:04]} 31. Nxa8 {[%emt 0:00:04]} Rxa8 {[%emt 0:00:10]} 32. f4 {[%emt 0:00:22][%cal Od2e4] Black should prevent Ne4!} c3 {[%emt 0:02:47]} 33. Ne4 {[%emt 0:00:08]} Qxa4 {[%emt 0:00:12]} 34. Nxc3 {[%emt 0:03:09]} (34. Nd6 $5 Qb4 (34... Qd4 35. f5 $16) 35. f5 Nxe5 36. fxe6 Qxd6 37. Qxc3 $11 (37. Bxb7 Qd2+ 38. Qxd2 cxd2 $11)) 34... Qd4 {[%emt 0:00:28]} (34... Qb4 $11 {keeps the balance.}) 35. Rd1 {[%emt 0:01:45]} ({Of course not} 35. Bxb7 $6 Rc8 (35... Qf2+ 36. Bg2 $16) 36. Re3 (36. Bxc8 Qf2+ 37. Kh1 Qf3+ 38. Kh2 Qf2+ 39. Kh1 Qf3+ 40. Kh2 Qf2+ $11) 36... Rc4 $11) (35. Qe3 $16 Qxe3 36. Rxe3) 35... Qb6 {[%emt 0:00:39]} (35... Qb4 $11 {remains equal.}) 36. Rd6 $36 {[%emt 0:00:43][%mdl 2048] White has strong initiative.} Qc5 {[%emt 0:00:32]} 37. Qd2 {[%emt 0:00:22]} Rc8 {[%emt 0:00:35] This costs Black the game.} (37... Rb8 $16) 38. Bxb7 $18 {[%emt 0:00:32]} Rb8 {[%emt 0:00:37]} 39. Be4 {[%emt 0:00:28] Strongly threatening Bxg6.} Nf8 {[%emt 0:00:26]} 40. Qd4 {[%emt 0:02:10]} Qxd4 {[%emt 0:00:28]} (40... Qb4 $142 41. Bd3 Qb2+ 42. Ne2 Rxb5) 41. Rxd4 {[%emt 0:30:31]} Bb3 {[%emt 0:04:00]} 42. Rd6 {[%emt 0:00:00]} Ne6 {[%emt 0:02:21]} 43. b6 {[%emt 0:00:00][%cal Bb5b6,Bb6b7][%mdl 32]} Nc5 {[%emt 0:01:16]} 44. Bf3 {[%emt 0:00:00]} a4 {[%emt 0:00:53]} (44... Kh7 {was called for.} 45. Bd5 a4 46. Bxb3 axb3) 45. Rc6 {[%emt 0:00:00] White is clearly winning.} Nd7 {[%emt 0:08:00] [#]} (45... Nb7 $142 46. Rc7 Nd8) 46. b7 $1 {[%emt 0:00:00][%mdl 512]} a3 {[%emt 0:00:09]} (46... Kh7 47. Ra6) 47. Ra6 {[%emt 0:00:00]} a2 {[%emt 0:01:25]} 48. Nxa2 {[%emt 0:00:00] Weighted Error Value: White=0.17 (very precise) /Black=0.38.  Mistake:       	White=3     	Black=9      Inaccurate:     	White=4     	Black=2      OK:         	White=15    	Black=12     Best:        	White=2     	Black=2      Brilliant:      	White=1     	---} 1-0

[Event "45th FIDE Olympiad 2024"]
[Site "Budapest"]
[Date "2024.09.19"]
[Round "8.43"]
[White "Amba, Oyon Marius Claude"]
[Black "Mbongeni, Mabuza"]
[Result "1/2-1/2"]
[WhiteElo "1975"]
[BlackElo "1784"]
[PlyCount "72"]
[EventDate "2024.09.05"]
[EventType "team-tourn"]
[EventCountry "HUN"]
[WhiteTeam "Cameroon"]
[BlackTeam "Eswatini"]
[WhiteTeamCountry "CAM"]
[TimeControl "40/5400+30:1800+30"]

1. e4 c6 2. Nf3 g6 3. d4 Bg7 4. c3 Nf6 5. e5 Nd5 6. Bc4 d6 7. O-O O-O 8. Bb3 Bg4 9. exd6 Qxd6 10. h3 Bxf3 11. Qxf3 e5 12. dxe5 Qxe5 13. Rd1 Nf6 14. Na3 Na6 15. Nc4 Qe4 16. Qxe4 Nxe4 17. Be3 b6 18. Rd7 Nac5 19. Bxc5 Nxc5 20. Rc7 Rfc8 21. Rxc8+ Rxc8 22. Rd1 Nxb3 23. axb3 b5 24. Na5 b4 25. c4 Bxb2 26. Rd7 c5 27. Kf1 Bc3 28. Rxa7 Re8 29. f4 Re1+ 30. Kf2 Ra1 31. g4 Bd4+ 32. Kg2 Rg1+ 33. Kf3 Rh1 34. Kg2 Rg1+ 35. Kf3 Rh1 36. Kg2 Rg1+ 1/2-1/2

[Event "45th FIDE Olympiad 2024"]
[Site "Budapest"]
[Date "2024.09.19"]
[Round "8.44"]
[White "Olsen, Filip Boe"]
[Black "Santos Latasa, Jaime"]
[Result "0-1"]
[ECO "E11"]
[WhiteElo "2441"]
[BlackElo "2624"]
[Annotator "TA"]
[PlyCount "208"]
[EventDate "2024.09.05"]
[EventType "team-tourn"]
[EventCountry "HUN"]
[SourceTitle "playchess.com"]
[Source "ChessBase"]
[SourceQuality "1"]
[WhiteTeam "Denmark"]
[BlackTeam "Spain"]
[WhiteTeamCountry "DEN"]
[BlackTeamCountry "ESP"]
[TimeControl "40/5400+30:1800+30"]

{[%evp 78,207,73,0,0,-37,-38,-161,-162,-218,-212,-200,-215,-206,-224,-205,-143,-260,-243,-362,-254,-266,-254,-239,-248,-232,-172,-497,-461,-437,-156,-153,-151,-151,-137,-335,-335,-991,-991,-983,-983,-983,-983,-983,-983,-983,-983,-983,-983,-983,-983,-983,-983,-983,-983,-983,-983,-983,-983,-983,-983,-983,-983,-983,-983,-983,-983,-983,-983,-976,-976,-969,-969,-969,-969,-962,-962,-900,-878,-804,-737,-12799,-12804,-12798,-5321,-12181,-12154,-6025,-5441,-29961,-29961,-29951,-29958,-11869,-7658,-29968,-29969,-29966,-29970,-29969,-29969,-29983,-29984,-29985,-29986,-29986,-29987,-29987,-29988,-29989,-29990,-29990,-29991,-29991,-29990,-29990,-29991,-29992,-29992,-29993,-4141,-29994,-29995,-29995,-29996,-29996,-29997,-29997,-29998,-29998,-29999,-29999]} 1. d4 {[%emt 0:00:08]} e6 {[%emt 0:00:04]} 2. c4 {[%emt 0:00:15]} Nf6 {[%emt 0:00:05]} 3. Nf3 {[%emt 0:00:17]} d5 {[%emt 0:00:07]} 4. g3 {[%emt 0:00:17]} Bb4+ {[%emt 0:00:05]} 5. Bd2 {[%emt 0:00:22]} Be7 {[%emt 0:00:06]} 6. Bg2 {[%emt 0:00:22]} O-O {[%emt 0:00:06]} 7. O-O {[%emt 0:00:21]} c6 {[%emt 0:00:03]} 8. Qc2 {[%emt 0:00:27]} Nbd7 {[%emt 0:00:18]} 9. Bf4 {[%emt 0:00:23]} h6 {[%emt 0:00:39] E11: Bogo-Indian.} 10. Rd1 {[%emt 0:00:31]} a5 {[%emt 0:00:17]} 11. Nc3 {[%emt 0:00:51]} dxc4 {[%emt 0:02:21]} 12. Nd2 {[%emt 0:00:41] 12.e4 is vanishing.} Nb6 {[%emt 0:02:02]} 13. e4 {[%emt 0:00:33]} a4 {[%emt 0:01:53]} 14. a3 {[%emt 0:00:31]} Bd7 {[%emt 0:01:45]} 15. Nf3 {[%emt 0:00:41]} c5 {[%emt 0:01:13]} 16. d5 {[%emt 0:00:17]} exd5 {[%emt 0:00:05]} 17. exd5 {[%emt 0:00:12]} Re8 {[%emt 0:00:05]} 18. Ne5 {[%emt 0:04:12]} Bf8 {[%emt 0:00:35]} 19. h4 {[%emt 0:00:59]} Qc8 {[%emt 0:02:15]} 20. Nxd7 {[%emt 0:19:58]} Qxd7 {[%emt 0:00:46]} 21. d6 {[%emt 0:00:42]} Nc8 $146 {[%emt 0:00:14]} ({Predecessor:} 21... g6 22. Bf3 Rad8 23. Qc1 Kh7 24. Qc2 Kg8 25. Qc1 Kh7 26. Qc2 Kg8 {½-½ Thybo,J (2539)-Dragnev,V (2586) Bundesliga 2324 2023 (15.5)}) 22. Nd5 {[%emt 0:07:41]} Nxd5 {[%emt 0:03:17]} 23. Rxd5 {[%emt 0:00:34]} Nxd6 {[%emt 0:00:49]} 24. Rad1 {[%emt 0:22:55]} Ra6 {[%emt 0:00:23]} 25. Qd2 {[%emt 0:02:25]} Rd8 {[%emt 0:06:13]} 26. Bf3 {[%emt 0:08:38]} Qb5 {[%emt 0:03:17]} 27. Kg2 {[%emt 0:05:46]} Rb6 {[%emt 0:02:08]} 28. Be5 {[%emt 0:00:54]} f6 {[%emt 0:03:22]} 29. Bc3 {[%emt 0:00:49]} Re8 {[%emt 0:00:18]} 30. Qf4 {[%emt 0:01:38]} Re6 {[%emt 0:00:33]} 31. g4 {[%emt 0:04:36]} Qe8 {[%emt 0:01:57]} 32. R5d2 {[%emt 0:04:59]} Kh8 {[%emt 0:03:48]} 33. Bd5 {[%emt 0:04:05]} Re7 {[%emt 0:00:26]} 34. Bf3 {[%emt 0:02:06]} Re6 {[%emt 0:00:34]} 35. Kf1 {[%emt 0:04:32]} Ra6 {[%emt 0:07:47]} 36. g5 {[%emt 0:01:38]} fxg5 {[%emt 0:00:22]} 37. hxg5 {[%emt 0:00:06]} hxg5 {[%emt 0:00:06]} 38. Qh2+ {[%emt 0:00:47]} Kg8 {[%emt 0:00:05]} 39. Bd5 {[%emt 0:00:10]} Nf7 {[%emt 0:00:05]} 40. Bxe6 {[%emt 0:00:43]} (40. Bxc4 $6 b5 41. Bxe6 Qxe6 $15) (40. Bxb7 $16 Rh6 41. Qg2) 40... Rxe6 {[%emt 0:00:53]} 41. Qc7 {[%emt 0:10:30]} b5 {[%emt 0:04:21]} 42. Qb7 {[%emt 0:02:16]} ({White should play} 42. Rd8 $1 $15 Nxd8 43. Rxd8) 42... Re4 $1 $19 {[%emt 0:05:18]} 43. Qd7 {[%emt 0:01:45] [#]} (43. f3 $142 Rh4 44. Kf2 (44. Rd7 $2 Rh1+ 45. Kf2 Rh2+ 46. Kg1 Re2 $19)) 43... b4 $1 $19 {[%emt 0:01:30]} 44. Qxe8 {[%emt 0:00:59]} Rxe8 {[%emt 0:00:18]} 45. axb4 {[%emt 0:00:14]} cxb4 {[%emt 0:00:04]} 46. Bd4 {[%emt 0:00:41]} Nd6 {[%emt 0:03:17]} 47. Ra1 {[%emt 0:01:55] [#]} (47. Re2 $17) 47... Ra8 $1 $19 {[%emt 0:03:42]} 48. Re2 {[%emt 0:08:03]} (48. Rc2 {might work better.}) 48... Nb5 {[%emt 0:06:35]} 49. Be5 {[%emt 0:04:11]} a3 {[%emt 0:00:45]} 50. bxa3 {[%emt 0:00:31]} c3 {[%emt 0:01:12]} ({Not} 50... bxa3 51. Rb1 Ra5 52. Rd2 $15) ({Much less strong is} 50... Rxa3 51. Rxa3 Nxa3 (51... bxa3 52. Rc2 $11) 52. Re4 $15) 51. a4 {[%emt 0:01:17]} b3 {[%emt 0:01:36]} 52. Bxc3 $2 {[%emt 0:02:32]} (52. Ree1 {nothing else works.} b2 53. Rab1 Rxa4 54. Bxc3 Nxc3 55. Rxb2) 52... Nxc3 $19 {[%emt 0:04:59]} 53. Rb2 {[%emt 0:00:04]} Rxa4 $2 {[%emt 0:00:31]} (53... Nxa4 $2 54. Rxb3 Nc5 55. Rxa8 $19) (53... Ne4 $19 54. Rd1 Rxa4 55. Rxb3 Ra2) 54. Rxa4 $17 {[%emt 0:00:15]} Nxa4 {[%emt 0:00:05]} 55. Rxb3 {[%emt 0:00:04]} Nc5 {[%emt 0:00:03]} 56. Re3 $2 {[%emt 0:00:28]} (56. Rb6 $17) 56... Bd6 $19 {[%emt 0:02:29]} 57. Kg2 $2 {[%emt 0:00:13]} (57. f3) 57... Kf7 $19 {[%emt 0:00:14]} 58. Kf3 {[%emt 0:00:22]} Nd7 {[%emt 0:00:39]} 59. Rb3 {[%emt 0:00:39]} Nf6 {[%emt 0:00:46]} 60. Rb5 {[%emt 0:00:19]} Kg6 {[%emt 0:00:16]} 61. Rb7 {[%emt 0:00:31]} g4+ {[%emt 0:00:49]} 62. Kg2 {[%emt 0:00:18]} Be5 {[%emt 0:00:25]} 63. Ra7 {[%emt 0:00:28]} Nh5 {[%emt 0:00:51]} 64. Ra4 {[%emt 0:00:23]} Kf5 {[%emt 0:01:58]} 65. Ra5 {[%emt 0:00:30]} Nf4+ {[%emt 0:00:18]} 66. Kg3 {[%emt 0:00:41]} Ng6+ {[%emt 0:01:01]} 67. Kg2 {[%emt 0:00:15]} Nh4+ {[%emt 0:00:06]} 68. Kf1 {[%emt 0:00:23]} Ke4 {[%emt 0:00:21]} 69. Ra4+ {[%emt 0:00:24]} Bd4 {[%emt 0:00:13]} 70. Rb4 {[%emt 0:00:23]} Ng6 {[%emt 0:02:56]} 71. Kg2 {[%emt 0:01:38]} Nf4+ {[%emt 0:00:51]} 72. Kg3 {[%emt 0:00:11]} Nd3 {[%emt 0:00:04]} 73. Ra4 {[%emt 0:02:40]} Nxf2 {[%emt 0:00:38]} 74. Ra5 {[%emt 0:00:28]} Be3 {[%emt 0:01:53]} 75. Rb5 {[%emt 0:01:13]} Nd3 {[%emt 0:02:55]} 76. Kxg4 {[%emt 0:00:08]} Ne5+ {[%emt 0:00:05]} 77. Kh5 {[%emt 0:02:07]} Kf5 {[%emt 0:01:48]} 78. Ra5 {[%emt 0:00:22]} Bf4 {[%emt 0:01:00]} 79. Rb5 {[%emt 0:00:18]} Bg3 {[%emt 0:00:41]} 80. Ra5 {[%emt 0:00:41]} g6+ {[%emt 0:00:11]} 81. Kh6 {[%emt 0:00:03]} Bf4+ {[%emt 0:00:05]} 82. Kg7 {[%emt 0:00:09]} g5 {[%emt 0:00:04]} 83. Kh6 {[%emt 0:00:43]} g4+ {[%emt 0:01:15]} 84. Kh5 {[%emt 0:00:00]} g3 {[%emt 0:00:28]} 85. Ra2 {[%emt 0:00:37]} Nf3 {[%emt 0:01:25]} 86. Re2 {[%emt 0:00:51]} Be5 {[%emt 0:01:28]} 87. Rg2 {[%emt 0:00:35]} Kf4 {[%emt 0:00:31]} 88. Re2 {[%emt 0:00:15]} Bd4 {[%emt 0:00:37]} 89. Rg2 {[%emt 0:01:44]} Bf2 {[%emt 0:00:11]} 90. Rxg3 {[%emt 0:00:06]} Bxg3 {[%emt 0:00:06]} 91. Kg6 {[%emt 0:00:03]} Ke5 {[%emt 0:00:29]} 92. Kf7 {[%emt 0:00:01]} Bh4 {[%emt 0:00:18]} 93. Ke8 {[%emt 0:00:00]} Ke6 {[%emt 0:00:08]} 94. Kf8 {[%emt 0:00:04]} Ne5 {[%emt 0:00:53]} 95. Ke8 {[%emt 0:00:05]} Bf6 {[%emt 0:02:04]} 96. Kf8 {[%emt 0:00:01]} Nc4 {[%emt 0:00:24]} 97. Ke8 {[%emt 0:00:03]} Nd6+ {[%emt 0:00:07]} 98. Kf8 {[%emt 0:00:05]} Kf5 {[%emt 0:00:03]} 99. Kg8 {[%emt 0:00:03]} Kg6 {[%emt 0:00:09]} 100. Kf8 {[%emt 0:00:03]} Bg5 {[%emt 0:00:10]} 101. Kg8 {[%emt 0:00:05]} Bh6 {[%emt 0:00:14]} 102. Kh8 {[%emt 0:00:02]} Ne4 {[%emt 0:00:09]} 103. Kg8 {[%emt 0:00:04]} Nf6+ {[%emt 0:00:04]} 104. Kh8 {[%emt 0:00:03]} Bg7# {[%emt 0:00:03]} 0-1

[Event "45th FIDE Olympiad 2024"]
[Site "Budapest"]
[Date "2024.09.19"]
[Round "8.44"]
[White "Nxumalo, Vuyo"]
[Black "Makem, Pierre"]
[Result "1/2-1/2"]
[WhiteElo "1746"]
[BlackElo "1860"]
[PlyCount "145"]
[EventDate "2024.09.05"]
[EventType "team-tourn"]
[EventCountry "HUN"]
[WhiteTeam "Eswatini"]
[BlackTeam "Cameroon"]
[BlackTeamCountry "CAM"]
[TimeControl "40/5400+30:1800+30"]

1. e4 e6 2. Nf3 b6 3. d4 Bb7 4. Nbd2 c5 5. c3 Nc6 6. d5 Nce7 7. Nc4 Ng6 8. h4 h5 9. Bd3 Qc7 10. Bc2 exd5 11. exd5 O-O-O 12. O-O Bd6 13. Nxd6+ Qxd6 14. c4 Re8 15. g3 Nh6 16. Bxh6 gxh6 17. a4 a5 18. Qd3 Rhg8 19. Rfe1 Rxe1+ 20. Rxe1 Qf6 21. Qf5 Qg7 22. Ne5 Nxe5 23. Rxe5 f6 24. Re3 Qg4 25. Re7 Rg7 26. Qxg4 Rxg4 27. d6 Bc6 28. b3 Rd4 29. Re8+ Kb7 30. Kf1 Rd2 31. Be4 Rxd6 32. Bxc6+ Kxc6 33. Rh8 Rd3 34. Rxh6 Rxb3 35. Rxh5 Rb4 36. Rf5 Rxa4 37. Rf4 Ra1+ 38. Ke2 a4 39. Rxf6+ d6 40. h5 a3 41. Rf3 a2 42. Ra3 Rh1 43. Rxa2 Rxh5 44. g4 Re5+ 45. Kf3 d5 46. cxd5+ Rxd5 47. Re2 c4 48. Ke4 b5 49. f4 c3 50. Rh2 Rd2 51. Rh8 c2 52. Ke3 Rg2 53. g5 Kd7 54. Rh1 b4 55. Kd3 b3 56. Kc3 Rg3+ 57. Kb2 Rd3 58. Kc1 Rf3 59. Rg1 Ke7 60. Kb2 Kf7 61. f5 Rd3 62. g6+ Kg7 63. Kc1 Rd7 64. Rh1 Kf6 65. Rf1 Rd8 66. Rg1 Rd7 67. Rf1 Kg7 68. Rh1 Rd3 69. Rf1 Kf6 70. Rg1 Rd7 71. Rf1 Rd6 72. Rg1 Kg7 73. Rf1 1/2-1/2